fUST/lending_fUST_20250707
["ID","MTS","AMOUNT","RATE_DAILY","PERIOD"]
[370089984,1751878262723,-460.0,0.00017692,2]
[370089985,1751878262733,-591.6,0.00017692,2]
[370089986,1751878262742,-566.95,0.00017692,2]
[370089987,1751878262752,-460.0,0.00017692,2]
[370089988,1751878262762,-460.0,0.00017692,2]
[370089989,1751878262773,-460.0,0.00017692,2]
[370089990,1751878262782,-460.0,0.00017692,2]
[370089991,1751878262792,-460.0,0.00017692,2]
[370089992,1751878262801,-460.0,0.00017692,2]
[370089993,1751878262811,-500.0,0.00017773,2]
[370089994,1751878262823,-536.8389108,0.00017773,2]
[370089995,1751878262832,-500.0,0.00017773,2]
[370089996,1751878262841,-500.0,0.00017773,2]
[370089997,1751878262850,-500.70927642,0.00017773,2]
[370089998,1751878262859,-500.23988821,0.00017773,2]
[370089999,1751878262868,-460.0,0.0001779,2]
[370090000,1751878262878,-460.0,0.0001779,2]
[370090001,1751878262888,-602.03090606,0.0001779,2]
[370090002,1751878262898,-1466.61,0.0001779,2]
[370090003,1751878262908,-323.43,0.0001779,2]
[370090004,1751878262918,-1693.65,0.0001779,2]
[370090005,1751878262928,-460.0,0.0001779,2]
[370090006,1751878262937,-511.73,0.0001779,2]
[370090007,1751878262946,-5131.36,0.0001779,2]
[370090008,1751878262955,-460.0,0.0001779,2]
[370090009,1751878262964,-927.78,0.0001779,2]
[370090010,1751878262973,-460.0,0.0001779,2]
[370090011,1751878262982,-2375.1,0.0001779,2]
[370090012,1751878262992,-460.0,0.0001779,2]
[370090013,1751878263002,-4148.36,0.0001779,2]
[370090014,1751878263011,-460.0,0.0001779,2]
[370090015,1751878263021,-1006.41,0.0001779,2]
[370090016,1751878263030,-460.0,0.0001779,2]
[370090017,1751878263040,-9521.95,0.0001779,2]
[370090018,1751878263049,-2677.89,0.0001779,2]
[370090019,1751878263058,-927.92,0.0001779,2]
[370090020,1751878263068,-152.684251,0.0001779,2]
[370090021,1751878263078,-151.0,0.0001779,2]
[370090022,1751878263088,-460.0,0.0001779,2]
[370090023,1751878263097,-460.0,0.00017791,2]
[370090024,1751878263107,-550.07366962,0.00017791,2]
[370090025,1751878263117,-460.0,0.00017791,2]
[370090026,1751878263126,-460.94705447,0.00017791,2]
[370090027,1751878263136,-460.0,0.00017791,2]
[370090028,1751878263147,-436.35468638,0.00017791,2]
[370090029,1751878263157,-460.0,0.00017791,2]
[370090030,1751878263167,-460.0,0.00017791,2]
[370090031,1751878263176,-460.0,0.00017791,2]
[370090032,1751878263186,-652.73,0.00017791,2]
[370090033,1751878263195,-460.0,0.00017791,2]
[370090034,1751878263205,-460.0,0.00017791,2]
[370090035,1751878263215,-321.82930831,0.00017791,2]
[370090036,1751878263225,-460.0,0.00017791,2]
[370090037,1751878263235,-460.0,0.00017791,2]
[370090038,1751878263245,-460.0,0.00017791,2]
[370090039,1751878263254,-460.0,0.00017791,2]
[370090040,1751878263264,-460.0,0.00017791,2]
[370090041,1751878263276,-295.0554059,0.00017791,2]
[370090042,1751878263287,-460.0,0.00017791,2]
[370090043,1751878263296,-460.0,0.00017791,2]
[370090044,1751878263306,-460.0,0.00017791,2]
[370090045,1751878263317,-460.0,0.00017791,2]
[370090046,1751878263327,-460.0,0.00017791,2]
[370090047,1751878263336,-460.0,0.00017791,2]
[370090048,1751878263346,-460.0,0.00017791,2]
[370090049,1751878263356,-460.0,0.00017791,2]
[370090050,1751878263366,-460.0,0.00017791,2]
[370090051,1751878263378,-460.0,0.00017791,2]
[370090052,1751878263388,-460.0,0.00017791,2]
[370090053,1751878263398,-460.0,0.00017791,2]
[370090054,1751878263409,-408.6507377,0.00017791,2]
[370090055,1751878263419,-460.0,0.00017791,2]
[370090056,1751878263430,-460.0,0.00017791,2]
[370090057,1751878263440,-460.0,0.00017791,2]
[370090058,1751878263450,-460.0,0.00017791,2]
[370090059,1751878263460,-460.0,0.00017791,2]
[370090060,1751878263470,-460.0,0.00017791,2]
[370090061,1751878263480,-290.55024436,0.00017791,2]
[370090062,1751878263490,-460.0,0.00017791,2]
[370090063,1751878263500,-460.0,0.00017791,2]
[370090064,1751878263510,-460.0,0.00017791,2]
[370090065,1751878263520,-460.0,0.00017791,2]
[370090066,1751878263530,-460.0,0.00017791,2]
[370090067,1751878263541,-460.0,0.00017791,2]
[370090068,1751878263551,-460.0,0.00017791,2]
[370090069,1751878263561,-460.0,0.00017791,2]
[370090070,1751878263571,-460.0,0.00017791,2]
[370090071,1751878263581,-460.0,0.00017791,2]
[370090072,1751878263590,-460.0,0.00017791,2]
[370090073,1751878263599,-460.0,0.00017791,2]
[370090074,1751878263609,-460.0,0.00017791,2]
[370090075,1751878263619,-460.0,0.00017791,2]
[370090076,1751878263629,-460.0,0.00017791,2]
[370090077,1751878263638,-460.0,0.00017791,2]
[370090078,1751878263648,-460.0,0.00017791,2]
[370090079,1751878263658,-590.05,0.00017791,2]
[370090080,1751878263667,-280.37305312,0.00017791,2]
[370090081,1751878263678,-642.41,0.00017791,2]
[370090082,1751878263687,-460.0,0.00017791,2]
[370090083,1751878263697,-460.0,0.00017791,2]
[370090084,1751878263707,-460.0,0.00017791,2]
[370090085,1751878263718,-460.0,0.00017791,2]
[370090086,1751878263729,-460.0,0.00017791,2]
[370090087,1751878263738,-1814.25,0.00017791,2]
[370090088,1751878263749,-460.0,0.00017791,2]
[370090089,1751878263760,-460.0,0.00017791,2]
[370090090,1751878263770,-780.98,0.00017791,2]
[370090091,1751878263780,-460.0,0.00017791,2]
[370090092,1751878263790,-460.0,0.00017791,2]
[370090093,1751878263799,-423.32100946,0.00017791,2]
[370090094,1751878263809,-460.0,0.00017791,2]
[370090095,1751878263821,-460.0,0.00017791,2]
[370090096,1751878263831,-460.0,0.00017791,2]
[370090097,1751878263840,-739.46,0.00017791,2]
[370090098,1751878263850,-460.0,0.00017791,2]
[370090099,1751878263861,-460.0,0.00017791,2]
[370090100,1751878263871,-460.0,0.00017791,2]
[370090101,1751878263882,-460.0,0.00017791,2]
[370090102,1751878263892,-460.0,0.00017791,2]
[370090103,1751878263901,-1473.58,0.00017791,2]
[370090104,1751878263912,-460.0,0.00017791,2]
[370090105,1751878263922,-460.0,0.00017791,2]
[370090106,1751878263932,-460.0,0.00017791,2]
[370090107,1751878263942,-460.0,0.00017791,2]
[370090108,1751878263951,-460.0,0.00017791,2]
[370090109,1751878263961,-460.0,0.00017791,2]
[370090110,1751878263970,-460.0,0.00017791,2]
[370090111,1751878263980,-460.0,0.00017791,2]
[370090112,1751878263989,-460.0,0.00017791,2]
[370090113,1751878263999,-537.97,0.00017791,2]
[370090114,1751878264008,-460.0,0.00017791,2]
[370090115,1751878264018,-460.0,0.00017791,2]
[370090116,1751878264028,-460.0,0.00017791,2]
[370090117,1751878264038,-237.75822802,0.00017791,2]
[370090118,1751878264047,-460.0,0.00017791,2]
[370090119,1751878264056,-460.0,0.00017791,2]
[370090120,1751878264066,-460.0,0.00017791,2]
[370090121,1751878264075,-398.914975,0.00017791,2]
[370090122,1751878264085,-308.62738373,0.00017791,2]
[370090123,1751878264094,-474.52,0.00017791,2]
[370090124,1751878264105,-460.0,0.00017791,2]
[370090125,1751878264116,-460.0,0.00017791,2]
[370090126,1751878264256,-460.0,0.00017791,2]
[370090127,1751878264266,-460.0,0.00017791,2]
[370090128,1751878264276,-463.45,0.00017791,2]
[370090129,1751878264286,-515.18,0.00017791,2]
[370090130,1751878264296,-569.19,0.00017791,2]
[370090131,1751878264306,-460.0,0.00017791,2]
[370090132,1751878264316,-460.0,0.00017791,2]
[370090133,1751878264326,-474.81,0.00017791,2]
[370090134,1751878264335,-590.63,0.00017791,2]
[370090135,1751878264344,-460.0,0.00017791,2]
[370090136,1751878264354,-517.21,0.00017791,2]
[370090137,1751878264363,-600.59,0.00017791,2]
[370090138,1751878264373,-460.0,0.00017791,2]
[370090139,1751878264383,-460.0,0.00017791,2]
[370090140,1751878264393,-460.0,0.00017791,2]
[370090141,1751878264402,-151.0,0.00017791,2]
[370090142,1751878264413,-460.14,0.00017791,2]
[370090143,1751878264422,-460.0,0.00017791,2]
[370090144,1751878264432,-460.0,0.00017791,2]
[370090145,1751878264442,-460.0,0.00017791,2]
[370090146,1751878264451,-460.0,0.00017791,2]
[370090147,1751878264461,-460.0,0.00017791,2]
[370090148,1751878264470,-503.25,0.00017791,2]
[370090149,1751878264480,-500.0,0.00017791,2]
[370090150,1751878264489,-1790.38,0.00017791,2]
[370090151,1751878264499,-151.0,0.00017791,2]
[370090152,1751878264508,-500.0,0.00017791,2]
[370090153,1751878264518,-460.0,0.00017791,2]
[370090154,1751878264528,-1020.84,0.00017791,2]
[370090155,1751878264537,-151.0,0.00017791,2]
[370090156,1751878264547,-460.0,0.00017791,2]
[370090157,1751878264556,-628.75,0.00017791,2]
[370090158,1751878264566,-151.0,0.00017791,2]
[370090159,1751878264575,-724.26,0.00017791,2]
[370090160,1751878264584,-160.955765,0.00017791,2]
[370090161,1751878264594,-160.955765,0.00017791,2]
[370090162,1751878264604,-460.0,0.00017791,2]
[370090163,1751878264614,-151.0,0.00017791,2]
[370090164,1751878264624,-599.29,0.00017791,2]
[370090165,1751878264633,-424.20881887,0.00017791,2]
[370090166,1751878264642,-151.0,0.00017791,2]
[370090167,1751878264652,-618.64,0.00017791,2]
[370090168,1751878264662,-460.0,0.00017791,2]
[370090169,1751878264672,-166.455343,0.00017791,2]
[370090170,1751878264681,-166.455343,0.00017791,2]
[370090171,1751878264692,-460.0,0.00017791,2]
[370090172,1751878264702,-460.0,0.00017791,2]
[370090173,1751878264712,-460.0,0.00017791,2]
[370090174,1751878264721,-460.0,0.00017791,2]
[370090175,1751878264731,-736.7,0.00017791,2]
[370090176,1751878264741,-513.26,0.00017791,2]
[370090177,1751878264750,-2101.7,0.00017791,2]
[370090178,1751878264760,-151.0,0.00017791,2]
[370090179,1751878264770,-701.27,0.00017791,2]
[370090180,1751878264780,-460.0,0.00017791,2]
[370090181,1751878264790,-501.61,0.00017791,2]
[370090182,1751878264799,-621.18,0.00017791,2]
[370090183,1751878264810,-460.0,0.00017791,2]
[370090184,1751878264823,-460.0,0.00017791,2]
[370090185,1751878264832,-460.0,0.00017791,2]
[370090186,1751878264842,-460.0,0.00017791,2]
[370090187,1751878264852,-460.0,0.00017791,2]
[370090188,1751878264861,-151.0,0.00017791,2]
[370090189,1751878264870,-460.0,0.00017791,2]
[370090190,1751878264880,-460.0,0.00017791,2]
[370090191,1751878264890,-1240.905189,0.00017791,2]
[370090192,1751878264900,-151.45784,0.00017791,2]
[370090193,1751878264910,-1588.08,0.00017791,2]
[370090194,1751878264919,-1240.905189,0.00017791,2]
[370090195,1751878264928,-460.0,0.00017791,2]
[370090196,1751878264938,-460.0,0.00017791,2]
[370090197,1751878264948,-1502.2,0.00017791,2]
[370090198,1751878264958,-460.0,0.00017791,2]
[370090199,1751878264968,-603.3,0.00017791,2]
[370090200,1751878264977,-151.0,0.00017791,2]
[370090201,1751878264988,-546.22313359,0.00017791,2]
[370090202,1751878264999,-645.22,0.00017791,2]
[370090203,1751878265010,-460.0,0.00017791,2]
[370090204,1751878265020,-154.295007,0.00017791,2]
[370090205,1751878265029,-460.0,0.00017791,2]
[370090206,1751878265038,-460.0,0.00017791,2]
[370090207,1751878265047,-460.0,0.00017791,2]
[370090208,1751878265056,-460.0,0.00017791,2]
[370090209,1751878265065,-460.0,0.00017791,2]
[370090210,1751878265083,-584.495755,0.00017791,2]
[370090211,1751878265100,-460.0,0.00017791,2]
[370090212,1751878265117,-584.495755,0.00017791,2]
[370090213,1751878265135,-802.16,0.00017791,2]
[370090214,1751878265155,-326.23454224,0.00017791,2]
[370090215,1751878265173,-460.0,0.00017791,2]
[370090216,1751878265191,-582.95,0.00017791,2]
[370090217,1751878265205,-264.124102,0.00017791,2]
[370090218,1751878265219,-460.0,0.00017791,2]
[370090219,1751878265237,-461.06,0.00017791,2]
[370090220,1751878265254,-518.66,0.00017791,2]
[370090221,1751878265273,-264.124102,0.00017791,2]
[370090222,1751878265287,-460.0,0.00017791,2]
[370090223,1751878265307,-882.2,0.00017791,2]
[370090224,1751878265322,-460.0,0.00017791,2]
[370090225,1751878265339,-460.0,0.00017791,2]
[370090226,1751878265354,-902.138538,0.00017791,2]
[370090227,1751878265370,-902.138538,0.00017791,2]
[370090228,1751878265386,-460.0,0.00017791,2]
[370090229,1751878265402,-466.33,0.00017791,2]
[370090230,1751878265418,-460.0,0.00017791,2]
[370090231,1751878265435,-460.0,0.00017791,2]
[370090232,1751878265452,-811.29,0.00017791,2]
[370090233,1751878265467,-460.0,0.00017791,2]
[370090234,1751878265482,-174.567543,0.00017791,2]
[370090235,1751878265498,-174.567543,0.00017791,2]
[370090236,1751878265514,-460.0,0.00017793,2]
[370090237,1751878265529,-460.0,0.00017793,2]
[370090238,1751878265546,-460.0,0.00017793,2]
[370090239,1751878265561,-460.0,0.00017793,2]
[370090240,1751878265576,-575.59,0.00017793,2]
[370090241,1751878265592,-460.0,0.00017793,2]
[370090242,1751878265609,-460.0,0.00017793,2]
[370090243,1751878265624,-460.0,0.00017793,2]
[370090244,1751878265639,-460.0,0.00017793,2]
[370090245,1751878265655,-460.0,0.00017793,2]
[370090246,1751878265670,-472.66395574,0.00017793,2]
[370090247,1751878265687,-338.78942406,0.00017793,2]
[370090248,1751878265703,-460.0,0.00017793,2]
[370090249,1751878265719,-460.0,0.00017794,2]
[370090250,1751878265732,-460.0,0.00017794,2]
[370090251,1751878265747,-460.0,0.00017795,2]
[370090252,1751878265761,-307.19562925,0.00017795,2]
[370090253,1751878265776,-460.0,0.00017795,2]
[370090254,1751878265790,-460.0,0.00017795,2]
[370090255,1751878265805,-460.0,0.00017795,2]
[370090256,1751878265822,-460.0,0.00017795,2]
[370090257,1751878265837,-460.0,0.00017795,2]
[370090258,1751878265852,-434.0789232,0.00017795,2]
[370090259,1751878265867,-460.0,0.00017795,2]
[370090260,1751878265881,-162.565536,0.00017795,2]
[370090261,1751878265898,-190.6115,0.00017795,2]
[370090262,1751878265915,-190.6115,0.00017795,2]
[370090263,1751878265932,-463.884223,0.00017795,2]
[370090264,1751878265947,-463.884223,0.00017795,2]
[370090265,1751878265962,-309.444679,0.00017795,2]
[370090266,1751878265977,-309.444679,0.00017795,2]
[370090267,1751878265993,-151.0,0.00017796,2]
[370090268,1751878266008,-151.0,0.00017796,2]
[370090269,1751878266023,-151.0,0.00017796,2]
[370090270,1751878266038,-151.0,0.00017796,2]
[370090271,1751878266053,-151.0,0.00017796,2]
[370090272,1751878266069,-151.0,0.00017796,2]
[370090273,1751878266084,-302.740728,0.00017796,2]
[370090274,1751878266099,-302.740728,0.00017796,2]
[370090275,1751878266115,-152.324072,0.00017796,2]
[370090276,1751878266130,-151.0,0.00017796,2]
[370090277,1751878266146,-211.885957,0.00017796,2]
[370090278,1751878266162,-211.885957,0.00017796,2]
[370090279,1751878266177,-151.0,0.00017796,2]
[370090280,1751878266193,-203.424781,0.00017796,2]
[370090281,1751878266208,-203.424781,0.00017796,2]
[370090282,1751878266224,-3702.021644,0.00017796,2]
[370090283,1751878266239,-3702.021644,0.00017796,2]
[370090284,1751878266255,-460.0,0.00017796,2]
[370090285,1751878266270,-460.0,0.00017796,2]
[370090286,1751878266286,-460.0,0.00017796,2]
[370090287,1751878266301,-460.0,0.00017796,2]
[370090288,1751878266317,-1820.82,0.00017796,2]
[370090289,1751878266332,-460.0,0.00017796,2]
[370090290,1751878266348,-460.0,0.00017796,2]
[370090291,1751878266363,-460.0,0.00017796,2]
[370090292,1751878266379,-460.0,0.00017796,2]
[370090293,1751878266570,-697.17,0.00017796,2]
[370090294,1751878266587,-460.0,0.00017796,2]
[370090295,1751878266597,-460.0,0.00017796,2]
[370090296,1751878266607,-584.48,0.00017796,2]
[370090297,1751878266616,-686.19,0.00017796,2]
[370090298,1751878266626,-460.0,0.00017796,2]
[370090299,1751878266635,-460.0,0.00017796,2]
[370090300,1751878266645,-460.0,0.00017796,2]
[370090301,1751878266654,-460.0,0.00017796,2]
[370090302,1751878266665,-891.26,0.00017796,2]
[370090303,1751878266675,-460.0,0.00017796,2]
[370090304,1751878266687,-460.0,0.00017796,2]
[370090305,1751878266697,-597.07,0.00017796,2]
[370090306,1751878266706,-460.0,0.00017796,2]
[370090307,1751878266716,-511.02,0.00017796,2]
[370090308,1751878266725,-461.69,0.00017796,2]
[370090309,1751878266734,-460.0,0.00017796,2]
[370090310,1751878266744,-460.0,0.00017796,2]
[370090311,1751878266753,-460.0,0.00017796,2]
[370090312,1751878266763,-460.0,0.00017796,2]
[370090313,1751878266773,-460.0,0.00017796,2]
[370090314,1751878266783,-460.0,0.00017796,2]
[370090315,1751878266792,-151.0,0.00017797,2]
[370090316,1751878266801,-151.0,0.00017797,2]
[370090317,1751878266811,-151.0,0.00017797,2]
[370090318,1751878266821,-151.0,0.00017797,2]
[370090319,1751878266831,-234.572647,0.00017797,2]
[370090320,1751878266841,-234.572647,0.00017797,2]
[370090321,1751878266850,-185.862515,0.00017797,2]
[370090322,1751878266859,-185.862515,0.00017797,2]
[370090323,1751878266868,-279.852506,0.00017797,2]
[370090324,1751878266877,-535.243736,0.00017797,2]
[370090325,1751878266886,-535.243736,0.00017797,2]
[370090326,1751878266895,-460.0,0.00017797,2]
[370090327,1751878266905,-460.0,0.00017797,2]
[370090328,1751878266915,-460.0,0.00017797,2]
[370090329,1751878266924,-460.0,0.00017797,2]
[370090330,1751878266933,-460.0,0.00017797,2]
[370090331,1751878266943,-460.0,0.00017797,2]
[370090332,1751878266952,-255.46362742,0.00017797,2]
[370090333,1751878266961,-460.0,0.00017797,2]
[370090334,1751878266971,-579.14,0.00017797,2]
[370090335,1751878266980,-151.0,0.00017797,2]
[370090336,1751878266990,-209.216977,0.00017797,2]
[370090337,1751878266999,-151.0,0.00017797,2]
[370090338,1751878267008,-151.0,0.00017797,2]
[370090339,1751878267017,-272.50166,0.00017797,2]
[370090340,1751878267027,-272.50166,0.00017797,2]
[370090341,1751878267036,-502.46667015,0.00017821,2]
[370090342,1751878267045,-290.801153,0.00017821,2]
[370090343,1751878267055,-373.55907953,0.00017821,2]
[370090344,1751878267064,-1000.0,0.00017821,2]
[370090345,1751878267073,-1000.0,0.00017821,2]
[370090346,1751878267083,-1000.0,0.00017821,2]
[370090347,1751878267092,-184.41411188,0.00017821,2]
[370090348,1751878267101,-1000.0,0.00017821,2]
[370090349,1751878267111,-1000.0,0.00017821,2]
[370090350,1751878267121,-1048.92467715,0.00017824,2]
[370090351,1751878267130,-503.70298021,0.00017824,2]
[370090352,1751878267139,-1000.0,0.00017824,2]
[370090353,1751878267148,-1000.0,0.00017824,2]
[370090354,1751878267158,-1000.0,0.00017824,2]
[370090355,1751878267167,-1000.0,0.00017824,2]
[370090356,1751878267177,-1000.0,0.00017824,2]
[370090357,1751878267186,-1000.0,0.00017824,2]
[370090358,1751878267195,-1001.0949268,0.00017824,2]
[370090359,1751878267204,-1000.0,0.00017824,2]
[370090360,1751878267214,-1000.0,0.00017824,2]
[370090361,1751878267223,-1000.0,0.00017824,2]
[370090362,1751878267233,-1000.0,0.00017824,2]
[370090363,1751878267242,-1000.0,0.00017824,2]
[370090364,1751878267251,-1000.0,0.00017824,2]
[370090365,1751878267260,-1680.07552712,0.00017831,2]
[370090366,1751878267270,-151.0,0.00017897,2]
[370090367,1751878267279,-151.0,0.00017897,2]
[370090368,1751878267288,-151.0,0.00017897,2]
[370090369,1751878267298,-151.0,0.00017897,2]
[370090370,1751878267307,-273.721132,0.00017897,2]
[370090371,1751878267317,-273.721132,0.00017897,2]
[370090372,1751878267326,-158.55,0.00017897,2]
[370090373,1751878267336,-158.55,0.00017897,2]
[370090374,1751878267346,-549.339809,0.00017897,2]
[370090375,1751878267355,-151.0,0.00017897,2]
[370090376,1751878267364,-773.469148,0.00017931,2]
[370090377,1751878267374,-773.469148,0.00017931,2]
[370090378,1751878267383,-670.12472,0.00017931,2]
[370090379,1751878267393,-670.12472,0.00017931,2]
[370090380,1751878267402,-350.876114,0.00017935,2]
[370090381,1751878267412,-1269.9,0.00017952,3]
[370090382,1751878267422,-634.96,0.00017954,3]
[370090383,1751878267431,-317.48,0.00017954,3]
[370090384,1751878267441,-475.24,0.00017956,2]
[370090385,1751878267450,-460.0,0.00017956,2]
[370090386,1751878267460,-634.64,0.00017956,2]
[370090387,1751878267470,-460.0,0.00017956,2]
[370090388,1751878267479,-460.0,0.00017956,2]
[370090389,1751878267489,-578.27,0.00017956,2]
[370090390,1751878267499,-714.52,0.00017956,2]
[370090391,1751878267508,-3372.58,0.00017956,2]
[370090392,1751878267517,-460.0,0.00017956,2]
[370090393,1751878267526,-460.0,0.00017956,2]
[370090394,1751878267536,-460.0,0.00017956,2]
[370090395,1751878267546,-460.0,0.00017956,2]
[370090396,1751878267555,-557.47,0.00017956,2]
[370090397,1751878267565,-460.0,0.00017956,2]
[370090398,1751878267574,-476.15,0.00017956,2]
[370090399,1751878267584,-460.0,0.0001796,2]
[370090400,1751878267594,-460.0,0.0001796,2]
[370090401,1751878267603,-460.0,0.0001796,2]
[370090402,1751878267612,-460.0,0.0001796,2]
[370090403,1751878267621,-460.0,0.0001796,2]
[370090404,1751878267630,-460.0,0.0001796,2]
[370090405,1751878267640,-460.0,0.0001796,2]
[370090406,1751878267650,-460.0,0.0001796,2]
[370090407,1751878267660,-460.0,0.0001796,2]
[370090408,1751878267670,-460.0,0.0001796,2]
[370090409,1751878267679,-460.0,0.0001796,2]
[370090410,1751878267688,-460.0,0.0001796,2]
[370090411,1751878267699,-460.0,0.0001796,2]
[370090412,1751878267708,-5018.54,0.0001796,2]
[370090413,1751878267718,-460.0,0.0001796,2]
[370090414,1751878267727,-460.0,0.0001796,2]
[370090415,1751878267737,-473.43,0.0001796,2]
[370090416,1751878267746,-460.0,0.0001796,2]
[370090417,1751878267756,-978.43,0.0001796,2]
[370090418,1751878267765,-877.49,0.0001796,2]
[370090419,1751878267775,-460.0,0.0001796,2]
[370090420,1751878267785,-460.0,0.0001796,2]
[370090421,1751878267794,-460.0,0.0001796,2]
[370090422,1751878267803,-460.0,0.0001796,2]
[370090423,1751878267815,-465.64309169,0.0001796,2]
[370090424,1751878267825,-460.0,0.0001796,2]
[370090425,1751878267835,-460.0,0.0001796,2]
[370090426,1751878267844,-4865.84,0.0001796,2]
[370090427,1751878267854,-464.8562431,0.0001796,2]
[370090428,1751878267864,-150.06534671,0.0001796,2]
[370090429,1751878267873,-460.0,0.0001796,2]
[370090430,1751878267882,-8429.87,0.0001796,2]
[370090431,1751878267893,-1078.12,0.0001796,2]
[370090432,1751878267903,-460.0,0.0001796,2]
[370090433,1751878267912,-460.0,0.0001796,2]
[370090434,1751878267921,-174.10732278,0.0001796,2]
[370090435,1751878267931,-460.0,0.0001796,2]
[370090436,1751878267941,-593.47151697,0.0001796,2]
[370090437,1751878267950,-460.0,0.0001796,2]
[370090438,1751878267959,-460.0,0.0001796,2]
[370090439,1751878267969,-282.80694967,0.0001796,2]
[370090440,1751878267978,-460.0,0.0001796,2]
[370090441,1751878267988,-814.88,0.0001796,2]
[370090442,1751878267997,-1523.08,0.0001796,2]
[370090443,1751878268007,-460.0,0.0001796,2]
[370090444,1751878268016,-758.47,0.00017961,2]
[370090445,1751878268025,-460.0,0.00017961,2]
[370090446,1751878268035,-460.0,0.00017961,2]
[370090447,1751878268044,-460.0,0.00017961,2]
[370090448,1751878268053,-460.0,0.00017961,2]
[370090449,1751878268063,-460.0,0.00017961,2]
[370090450,1751878268072,-648.63,0.00017961,2]
[370090451,1751878268082,-4741.33,0.00017961,2]
[370090452,1751878268091,-815.67,0.00017961,2]
[370090453,1751878268101,-4342.85,0.00017961,2]
[370090454,1751878268111,-460.0,0.00017961,2]
[370090455,1751878268121,-460.0,0.00017961,2]
[370090456,1751878268130,-460.0,0.00017961,2]
[370090457,1751878268140,-460.0,0.00017961,2]
[370090458,1751878268150,-1322.28,0.00017961,2]
[370090459,1751878268160,-460.0,0.00017962,2]
[370090460,1751878268171,-460.0,0.00017962,2]
[370090461,1751878268180,-460.0,0.00017962,2]
[370090462,1751878268190,-612.32,0.00017962,2]
[370090463,1751878268199,-586.81,0.00017962,2]
[370090464,1751878268209,-460.0,0.00017962,2]
[370090465,1751878268219,-460.0,0.00017962,2]
[370090466,1751878268228,-460.0,0.00017962,2]
[370090467,1751878268238,-460.0,0.00017962,2]
[370090468,1751878268247,-978.47,0.00017962,2]
[370090469,1751878268256,-1929.95,0.00017962,2]
[370090470,1751878268266,-460.0,0.00017962,2]
[370090471,1751878268275,-479.04,0.00017962,2]
[370090472,1751878268284,-460.0,0.00017962,2]
[370090473,1751878268294,-460.0,0.00017962,2]
[370090474,1751878268303,-460.0,0.00017962,2]
[370090475,1751878268313,-460.0,0.00017962,2]
[370090476,1751878268323,-460.0,0.00017962,2]
[370090477,1751878268332,-961.6,0.00017962,2]
[370090478,1751878268342,-1232.5,0.00017962,2]
[370090479,1751878268352,-2371.65,0.00017962,2]
[370090480,1751878268361,-460.0,0.00017962,2]
[370090481,1751878268371,-1116.74,0.00017962,2]
[370090482,1751878268380,-4190.5,0.00017962,2]
[370090483,1751878268390,-460.0,0.00017962,2]